[Event "Norway Chess 2015 Blitz"]
[Site "Stavanger"]
[Date "2015.06.15"]
[Round "4"]
[White "Aronian, Levon"]
[Black "Caruana, Fabiano"]
[Result "1-0"]
[ECO "A46"]
[WhiteElo "2816"]
[BlackElo "2679"]
[Annotator ""]
[PlyCount "174"]
[EventDate "2015.??.??"]
[EventCountry "NOR"]
[TimeControl "180+2"]

1. d4 {[%emt 0:00:00]} Nf6 {[%emt 0:00:00]} 2. Nf3 {[%emt 0:00:00]} e6 {[%emt
0:00:01]} 3. c4 {[%emt 0:00:02]} d5 {[%emt 0:00:02]} 4. g3 {[%emt 0:00:01]}
Bb4+ {[%emt 0:00:03]} 5. Bd2 {[%emt 0:00:02]} Be7 {[%emt 0:00:02]} 6. Bg2 {
[%emt 0:00:01]} O-O {[%emt 0:00:02]} 7. O-O {[%emt 0:00:02]} Nbd7 {[%emt 0:00:
03]} 8. Qb3 {[%emt 0:00:05]} Nb6 {[%emt 0:00:04]} 9. cxd5 {[%emt 0:00:20]} exd5
{[%emt 0:00:02]} 10. Bb4 {[%emt 0:00:02]} Bxb4 {[%emt 0:00:12]} 11. Qxb4 {
[%emt 0:00:01]} a5 {[%emt 0:00:01]} 12. Qc3 {[%emt 0:00:04]} c6 {[%emt 0:00:05]
} 13. Ne5 {[%emt 0:00:12]} Re8 {[%emt 0:00:07]} 14. Nd2 {[%emt 0:00:04]} Ng4 {
[%emt 0:00:10]} 15. Nxg4 {[%emt 0:00:21]} Bxg4 {[%emt 0:00:02]} 16. e3 {[%emt
0:00:01]} Qd6 {[%emt 0:00:12]} 17. Rfe1 {[%emt 0:00:09]} Be6 {[%emt 0:00:07]}
18. Nb3 {[%emt 0:00:10]} Qc7 {[%emt 0:00:25]} 19. Nc5 {[%emt 0:00:02]} Nd7 {
[%emt 0:00:05]} 20. Nxe6 {[%emt 0:00:03]} fxe6 {[%emt 0:00:02]} 21. e4 {[%emt
0:00:03]} Qd6 {[%emt 0:00:08]} 22. Re2 {[%emt 0:00:03]} dxe4 {[%emt 0:00:13]}
23. Bxe4 {[%emt 0:00:11]} Nf6 {[%emt 0:00:02]} 24. Bc2 {[%emt 0:00:01]} Rad8 {
[%emt 0:00:08]} 25. Qxa5 {[%emt 0:00:13]} Qxd4 {[%emt 0:00:02]} 26. Rd1 {[%emt
0:00:06]} Ra8 {[%emt 0:00:32]} 27. Qxa8 {[%emt 0:00:09]} Qxd1+ {[%emt 0:00:02]}
28. Bxd1 {[%emt 0:00:00]} Rxa8 {[%emt 0:00:01]} 29. Bb3 {[%emt 0:00:01]} Kf8 {
[%emt 0:00:01]} 30. Rxe6 {[%emt 0:00:03]} Nd7 {[%emt 0:00:05]} 31. Re3 {[%emt
0:00:08]} h6 {[%emt 0:00:27]} 32. Rf3+ {[%emt 0:00:08]} Nf6 {[%emt 0:00:01]}
33. Kf1 {[%emt 0:00:01]} Ke7 {[%emt 0:00:03]} 34. Ke2 {[%emt 0:00:02]} Kd6 {
[%emt 0:00:01]} 35. a3 {[%emt 0:00:08]} b5 {[%emt 0:00:02]} 36. Bc2 {[%emt 0:
00:05]} Ra7 {[%emt 0:00:07]} 37. Rd3+ {[%emt 0:00:04]} Kc5 {[%emt 0:00:06]} 38.
f4 {[%emt 0:00:09]} b4 {[%emt 0:00:09]} 39. axb4+ {[%emt 0:00:03]} Kxb4 {[%emt
0:00:01]} 40. Rb3+ {[%emt 0:00:13]} Kc5 {[%emt 0:00:00]} 41. Kf3 {[%emt 0:00:
01]} Nd5 {[%emt 0:00:01]} 42. Be4 {[%emt 0:00:04]} Kd4 {[%emt 0:00:10]} 43.
Rd3+ {[%emt 0:00:08]} Kc4 {[%emt 0:00:05]} 44. h4 {[%emt 0:00:02]} Rb7 {[%emt
0:00:01]} 45. Rd2 {[%emt 0:00:12]} Rb3+ {[%emt 0:00:01]} 46. Kf2 {[%emt 0:00:
01]} Kc5 {[%emt 0:00:05]} 47. Bf3 {[%emt 0:00:06]} Kd6 {[%emt 0:00:05]} 48. Bd1
{[%emt 0:00:03]} Rb4 {[%emt 0:00:01]} 49. Kf3 {[%emt 0:00:02]} Ke7 {[%emt 0:00:
04]} 50. b3 {[%emt 0:00:07]} Nc7 {[%emt 0:00:01]} 51. Rd3 {[%emt 0:00:09]} Ne6
{[%emt 0:00:01]} 52. Ke3 {[%emt 0:00:01]} g5 {[%emt 0:00:03]} 53. fxg5 {[%emt
0:00:05]} hxg5 {[%emt 0:00:01]} 54. h5 {[%emt 0:00:01]} Kf6 {[%emt 0:00:06]}
55. Rc3 {[%emt 0:00:02]} c5 {[%emt 0:00:00]} 56. Rc4 {[%emt 0:00:02]} Rb8 {
[%emt 0:00:02]} 57. g4 {[%emt 0:00:03]} Rd8 {[%emt 0:00:03]} 58. Bc2 {[%emt 0:
00:02]} Re8 {[%emt 0:00:02]} 59. Ke4 {[%emt 0:00:05]} Nd4+ {[%emt 0:00:01]} 60.
Kd5 {[%emt 0:00:01]} Re5+ {[%emt 0:00:01]} 61. Kd6 {[%emt 0:00:01]} Nb5+ {
[%emt 0:00:06]} 62. Kc6 {[%emt 0:00:01]} Nd4+ {[%emt 0:00:01]} 63. Kb6 {[%emt
0:00:04]} Nxc2 {[%emt 0:00:01]} 64. Rxc2 {[%emt 0:00:01]} Re3 {[%emt 0:00:00]}
65. Rf2+ {[%emt 0:00:05]} Kg7 {[%emt 0:00:02]} 66. Kxc5 {[%emt 0:00:04]} Rc3+ {
[%emt 0:00:06]} 67. Kd5 {[%emt 0:00:03]} Rxb3 {[%emt 0:00:01]} 68. Rf5 {[%emt
0:00:01]} Kh6 {[%emt 0:00:01]} 69. Rf6+ {[%emt 0:00:01]} Kh7 {[%emt 0:00:01]}
70. Ke6 {[%emt 0:00:04]} Rb4 {[%emt 0:00:03]} 71. Kf5 {[%emt 0:00:02]} Rb5+ {
[%emt 0:00:00]} 72. Ke4 {[%emt 0:00:00]} Rb4+ {[%emt 0:00:01]} 73. Kf3 {[%emt
0:00:01]} Rb3+ {[%emt 0:00:00]} 74. Kg2 {[%emt 0:00:01]} Rb2+ {[%emt 0:00:01]}
75. Rf2 Rb4 76. Kg3 {[%emt 0:00:02]} Rb3+ {[%emt 0:00:01]} 77. Rf3 {[%emt 0:00:
01]} Rb4 {[%emt 0:00:02]} 78. Rf5 {[%emt 0:00:01]} Rb3+ {[%emt 0:00:01]} 79.
Kf2 {[%emt 0:00:01]} Kh6 {[%emt 0:00:00]} 80. Rf6+ Kh7 81. Rg6 Rb5 82. Ke3 {
[%emt 0:00:02]} Ra5 {[%emt 0:00:06]} 83. Ke4 {[%emt 0:00:04]} Rb5 {[%emt 0:00:
00]} 84. Rd6 {[%emt 0:00:02]} Ra5 {[%emt 0:00:09]} 85. Rd5 {[%emt 0:00:02]} Ra6
{[%emt 0:00:11]} 86. Rxg5 {[%emt 0:00:03]} Kh6 {[%emt 0:00:03]} 87. Re5 {[%emt
0:00:02]} Ra1 {[%emt 0:00:05]} 1-0

[Event "Norway Chess 2015 Blitz"]
[Site "Stavanger"]
[Date "2015.06.15"]
[Round "4"]
[White "Grischuk, Alexander"]
[Black "Hammer, Jon Ludvig"]
[Result "1/2-1/2"]
[ECO "A45"]
[WhiteElo "2839"]
[BlackElo "2648"]
[Annotator ""]
[PlyCount "137"]
[EventDate "2015.??.??"]
[EventCountry "NOR"]
[TimeControl "180+2"]

1. d4 {[%emt 0:00:00]} Nf6 {[%emt 0:00:00]} 2. Bf4 {[%emt 0:00:01]} d5 {[%emt
0:00:03]} 3. e3 {[%emt 0:00:01]} e6 {[%emt 0:00:03]} 4. Nd2 {[%emt 0:00:08]}
Bd6 {[%emt 0:00:01]} 5. Bg3 {[%emt 0:00:08]} c5 {[%emt 0:00:02]} 6. c3 {[%emt
0:00:02]} O-O {[%emt 0:00:04]} 7. Bd3 {[%emt 0:00:03]} Nc6 {[%emt 0:00:02]} 8.
Ngf3 {[%emt 0:00:01]} Qe7 {[%emt 0:00:04]} 9. Ne5 {[%emt 0:00:02]} Nd7 {[%emt
0:00:02]} 10. Nxd7 {[%emt 0:00:05]} Qxd7 {[%emt 0:00:01]} 11. O-O {[%emt 0:00:
15]} b6 {[%emt 0:00:07]} 12. Bxd6 {[%emt 0:00:14]} Qxd6 {[%emt 0:00:02]} 13. f4
{[%emt 0:00:01]} f5 {[%emt 0:00:02]} 14. Nf3 {[%emt 0:00:14]} c4 {[%emt 0:00:
03]} 15. Bc2 {[%emt 0:00:03]} b5 {[%emt 0:00:01]} 16. a3 {[%emt 0:00:12]} a5 {
[%emt 0:00:03]} 17. g4 {[%emt 0:00:16]} Bd7 {[%emt 0:00:09]} 18. Ne5 {[%emt 0:
00:13]} Nxe5 {[%emt 0:00:06]} 19. fxe5 {[%emt 0:00:02]} Qe7 {[%emt 0:00:02]}
20. gxf5 {[%emt 0:00:14]} exf5 {[%emt 0:00:03]} 21. Qf3 {[%emt 0:00:02]} Be6 {
[%emt 0:00:01]} 22. Kh1 {[%emt 0:00:06]} g6 {[%emt 0:00:03]} 23. Qg2 {[%emt 0:
00:04]} Kh8 {[%emt 0:00:05]} 24. Bd1 {[%emt 0:00:17]} Rfb8 {[%emt 0:00:19]} 25.
Bf3 Qd7 26. h4 {[%emt 0:00:06]} b4 {[%emt 0:00:06]} 27. axb4 {[%emt 0:00:08]}
axb4 {[%emt 0:00:01]} 28. Rxa8 {[%emt 0:00:07]} Rxa8 {[%emt 0:00:01]} 29. h5 {
[%emt 0:00:02]} gxh5 {[%emt 0:00:02]} 30. Qg5 {[%emt 0:00:07]} Qg7 {[%emt 0:00:
10]} 31. Qxh5 {[%emt 0:00:32]} bxc3 {[%emt 0:00:29]} 32. bxc3 {[%emt 0:00:01]}
Rg8 {[%emt 0:00:00]} 33. Qh4 {[%emt 0:00:02]} h6 {[%emt 0:00:20]} 34. Qf6 {
[%emt 0:00:06]} Qxf6 {[%emt 0:00:02]} 35. exf6 {[%emt 0:00:01]} Rf8 {[%emt 0:
00:00]} 36. Rb1 {[%emt 0:00:03]} Rxf6 {[%emt 0:00:02]} 37. Rb6 {[%emt 0:00:00]}
Kg7 {[%emt 0:00:01]} 38. Kg1 {[%emt 0:00:05]} Bf7 {[%emt 0:00:04]} 39. Rb7 {
[%emt 0:00:02]} Kg6 {[%emt 0:00:02]} 40. Kf2 {[%emt 0:00:00]} h5 {[%emt 0:00:
06]} 41. Rd7 {[%emt 0:00:04]} Rb6 {[%emt 0:00:32]} 42. Bxh5+ {[%emt 0:00:02]}
Kxh5 {[%emt 0:00:01]} 43. Rxf7 {[%emt 0:00:01]} Kg5 {[%emt 0:00:08]} 44. Kf3 {
[%emt 0:00:04]} Rb3 {[%emt 0:00:01]} 45. Rd7 {[%emt 0:00:02]} Rxc3 {[%emt 0:00:
02]} 46. Rxd5 {[%emt 0:00:02]} Ra3 {[%emt 0:00:17]} 47. Rc5 {[%emt 0:00:02]} c3
{[%emt 0:00:01]} 48. Rc8 {[%emt 0:00:06]} Rb3 {[%emt 0:00:19]} 49. Rc6 {[%emt
0:00:02]} Ra3 {[%emt 0:00:01]} 50. Rc5 {[%emt 0:00:01]} Rb3 {[%emt 0:00:02]}
51. Rc8 {[%emt 0:00:01]} Ra3 {[%emt 0:00:01]} 52. Ke2 {[%emt 0:00:04]} f4 {
[%emt 0:00:06]} 53. Rg8+ {[%emt 0:00:03]} Kh6 {[%emt 0:00:00]} 54. exf4 {[%emt
0:00:03]} c2 {[%emt 0:00:02]} 55. Rc8 {[%emt 0:00:01]} Kg6 {[%emt 0:00:01]} 56.
Rxc2 {[%emt 0:00:02]} Kf5 {[%emt 0:00:00]} 57. Kd2 {[%emt 0:00:03]} Kxf4 58.
Rc3 Ra8 {[%emt 0:00:11]} 59. Kd3 {[%emt 0:00:01]} Kf5 {[%emt 0:00:03]} 60. Rc6
{[%emt 0:00:01]} Ra4 {[%emt 0:00:06]} 61. Rd6 {[%emt 0:00:03]} Ra1 {[%emt 0:00:
05]} 62. Kc4 {[%emt 0:00:01]} Ra4+ {[%emt 0:00:01]} 63. Kb5 {[%emt 0:00:01]}
Ra1 {[%emt 0:00:01]} 64. Kc4 {[%emt 0:00:02]} Ra4+ {[%emt 0:00:01]} 65. Kc5 {
[%emt 0:00:02]} Ra5+ {[%emt 0:00:01]} 66. Kb4 {[%emt 0:00:01]} Ra1 {[%emt 0:00:
01]} 67. Kc3 {[%emt 0:00:03]} Ke4 {[%emt 0:00:03]} 68. Re6+ {[%emt 0:00:02]}
Kd5 {[%emt 0:00:00]} 69. Re5+ 1/2-1/2

[Event "Norway Chess 2015 Blitz"]
[Site "Stavanger"]
[Date "2015.06.15"]
[Round "4"]
[White "Nakamura, Hikaru"]
[Black "Giri, Anish"]
[Result "1/2-1/2"]
[ECO "A22"]
[WhiteElo "2883"]
[BlackElo "2771"]
[Annotator ""]
[PlyCount "116"]
[EventDate "2015.??.??"]
[EventCountry "NOR"]
[TimeControl "180+2"]

1. c4 {[%emt 0:00:00]} Nf6 {[%emt 0:00:00]} 2. Nc3 {[%emt 0:00:00]} e5 {[%emt
0:00:00]} 3. g3 {[%emt 0:00:02]} d5 {[%emt 0:00:01]} 4. cxd5 {[%emt 0:00:02]}
Nxd5 {[%emt 0:00:01]} 5. Bg2 {[%emt 0:00:02]} Nb6 {[%emt 0:00:01]} 6. Nf3 {
[%emt 0:00:02]} Nc6 {[%emt 0:00:01]} 7. b3 {[%emt 0:00:04]} Be7 {[%emt 0:00:04]
} 8. Bb2 {[%emt 0:00:06]} O-O {[%emt 0:00:02]} 9. O-O {[%emt 0:00:02]} Be6 {
[%emt 0:00:07]} 10. d4 {[%emt 0:00:29]} exd4 {[%emt 0:00:06]} 11. Nb5 {[%emt 0:
00:01]} Bd5 {[%emt 0:00:41]} 12. Nbxd4 {[%emt 0:00:12]} Nxd4 {[%emt 0:00:10]}
13. Bxd4 {[%emt 0:00:34]} c5 {[%emt 0:00:01]} 14. Bc3 {[%emt 0:00:10]} Bf6 {
[%emt 0:00:03]} 15. Qc2 {[%emt 0:00:07]} Re8 {[%emt 0:00:06]} 16. Rfe1 {[%emt
0:00:21]} Rc8 {[%emt 0:00:26]} 17. Rad1 {[%emt 0:00:11]} Bxc3 {[%emt 0:00:21]}
18. Qxc3 {[%emt 0:00:01]} Qe7 {[%emt 0:00:01]} 19. e4 {[%emt 0:00:07]} Be6 {
[%emt 0:00:07]} 20. Qa5 {[%emt 0:00:01]} c4 {[%emt 0:00:06]} 21. Qxa7 {[%emt 0:
00:25]} Qc5 {[%emt 0:00:12]} 22. b4 {[%emt 0:00:08]} Qc7 {[%emt 0:00:14]} 23.
Qa5 {[%emt 0:00:02]} c3 {[%emt 0:00:02]} 24. Rc1 {[%emt 0:00:01]} Ra8 {[%emt 0:
00:12]} 25. Qb5 {[%emt 0:00:09]} Rec8 {[%emt 0:00:15]} 26. Nd4 {[%emt 0:00:03]}
Bd7 {[%emt 0:00:06]} 27. Qe2 {[%emt 0:00:03]} Qc4 {[%emt 0:00:03]} 28. Qe3 {
[%emt 0:00:03]} Rxa2 {[%emt 0:00:05]} 29. e5 {[%emt 0:00:03]} Nd5 {[%emt 0:00:
08]} 30. Bxd5 {[%emt 0:00:01]} Qxd5 {[%emt 0:00:01]} 31. Rxc3 {[%emt 0:00:01]}
Rxc3 {[%emt 0:00:05]} 32. Qxc3 {[%emt 0:00:01]} Bh3 {[%emt 0:00:01]} 33. Nf3 {
[%emt 0:00:03]} h6 {[%emt 0:00:07]} 34. Qe3 {[%emt 0:00:08]} Rb2 {[%emt 0:00:
03]} 35. Qe4 {[%emt 0:00:11]} Qxe4 {[%emt 0:00:01]} 36. Rxe4 {[%emt 0:00:01]}
Rb1+ {[%emt 0:00:00]} 37. Ne1 {[%emt 0:00:02]} Bf5 {[%emt 0:00:02]} 38. Re3 {
[%emt 0:00:01]} Rxb4 {[%emt 0:00:01]} 39. f3 {[%emt 0:00:01]} h5 {[%emt 0:00:
03]} 40. h4 {[%emt 0:00:02]} b5 {[%emt 0:00:00]} 41. Kf2 {[%emt 0:00:04]} Rb1 {
[%emt 0:00:05]} 42. Nd3 {[%emt 0:00:06]} b4 {[%emt 0:00:02]} 43. Nc5 {[%emt 0:
00:00]} Rc1 {[%emt 0:00:05]} 44. Nb3 {[%emt 0:00:07]} Rc2+ 45. Ke1 Be6 {[%emt
0:00:08]} 46. Nd4 {[%emt 0:00:01]} Rc1+ {[%emt 0:00:01]} 47. Kd2 {[%emt 0:00:
01]} Rc4 {[%emt 0:00:01]} 48. Nxe6 {[%emt 0:00:02]} fxe6 {[%emt 0:00:01]} 49.
Rd3 {[%emt 0:00:01]} Kf7 {[%emt 0:00:03]} 50. Rd7+ {[%emt 0:00:04]} Kf8 {[%emt
0:00:03]} 51. Rd6 {[%emt 0:00:02]} Kf7 {[%emt 0:00:01]} 52. Rd7+ Kf8 53. Rb7 {
[%emt 0:00:02]} Rc5 {[%emt 0:00:03]} 54. Ke3 {[%emt 0:00:07]} Rxe5+ 55. Kd4
Rd5+ {[%emt 0:00:05]} 56. Ke4 {[%emt 0:00:02]} Ra5 {[%emt 0:00:03]} 57. Rxb4 {
[%emt 0:00:01]} Kf7 {[%emt 0:00:01]} 58. Rb7+ {[%emt 0:00:01]} Kf6 {[%emt 0:00:
00]} 1/2-1/2

[Event "Norway Chess 2015 Blitz"]
[Site "Stavanger"]
[Date "2015.06.15"]
[Round "4"]
[White "Topalov, Veselin"]
[Black "Carlsen, Magnus"]
[Result "0-1"]
[ECO "B06"]
[WhiteElo "2641"]
[BlackElo "2933"]
[Annotator ""]
[PlyCount "76"]
[EventDate "2015.??.??"]
[EventCountry "NOR"]
[TimeControl "180+2"]

1. d4 {[%emt 0:00:00]} g6 {[%emt 0:00:00]} 2. e4 {[%emt 0:00:01]} Bg7 {[%emt 0:
00:01]} 3. Bc4 {[%emt 0:00:05]} c6 {[%emt 0:00:06]} 4. Qf3 {[%emt 0:00:15]} e6
{[%emt 0:00:34]} 5. Ne2 {[%emt 0:00:02]} d5 {[%emt 0:00:01]} 6. Bb3 {[%emt 0:
00:02]} Nd7 {[%emt 0:00:09]} 7. Nbc3 {[%emt 0:00:07]} Ne7 {[%emt 0:00:06]} 8.
O-O {[%emt 0:00:02]} O-O {[%emt 0:00:03]} 9. Rd1 {[%emt 0:00:07]} b6 {[%emt 0:
00:01]} 10. Bf4 {[%emt 0:00:02]} Bb7 {[%emt 0:00:05]} 11. Bd6 {[%emt 0:00:05]}
Re8 {[%emt 0:00:08]} 12. h3 {[%emt 0:00:12]} Nf6 {[%emt 0:00:10]} 13. e5 {
[%emt 0:00:15]} Nd7 {[%emt 0:00:02]} 14. Ng3 {[%emt 0:00:01]} Nc8 {[%emt 0:00:
02]} 15. Ba3 {[%emt 0:00:02]} c5 {[%emt 0:00:06]} 16. dxc5 {[%emt 0:00:12]}
bxc5 {[%emt 0:00:06]} 17. Ba4 {[%emt 0:00:17]} Ncb6 {[%emt 0:00:02]} 18. Qe2 {
[%emt 0:00:02]} Nxa4 {[%emt 0:00:11]} 19. Nxa4 {[%emt 0:00:02]} Qa5 {[%emt 0:
00:01]} 20. b3 {[%emt 0:00:23]} Bxe5 {[%emt 0:00:01]} 21. Bb2 {[%emt 0:00:25]}
Bxb2 {[%emt 0:00:17]} 22. Nxb2 {[%emt 0:00:01]} Qc7 {[%emt 0:00:01]} 23. Qe3 {
[%emt 0:00:12]} e5 {[%emt 0:00:03]} 24. Qg5 {[%emt 0:00:07]} f6 {[%emt 0:00:05]
} 25. Qg4 {[%emt 0:00:03]} Rad8 {[%emt 0:00:08]} 26. Rd2 {[%emt 0:00:03]} e4 {
[%emt 0:00:06]} 27. Re1 {[%emt 0:00:11]} Ne5 {[%emt 0:00:02]} 28. Qh4 {[%emt 0:
00:02]} f5 {[%emt 0:00:05]} 29. Na4 {[%emt 0:00:08]} d4 {[%emt 0:00:05]} 30.
Qg5 {[%emt 0:00:11]} Nf7 {[%emt 0:00:01]} 31. Qf6 {[%emt 0:00:02]} Rd6 {[%emt
0:00:06]} 32. Qh4 {[%emt 0:00:02]} Rde6 {[%emt 0:00:13]} 33. Rdd1 {[%emt 0:00:
02]} e3 {[%emt 0:00:19]} 34. f4 {[%emt 0:00:14]} Qc6 {[%emt 0:00:24]} 35. Re2 {
[%emt 0:00:04]} Ba6 {[%emt 0:00:03]} 36. Nb2 {[%emt 0:00:04]} Bxe2 {[%emt 0:00:
02]} 37. Nxe2 {[%emt 0:00:01]} Nd6 {[%emt 0:00:04]} 38. Nd3 {[%emt 0:00:05]}
Ne4 {[%emt 0:00:01]} 0-1

[Event "Norway Chess 2015 Blitz"]
[Site "Stavanger"]
[Date "2015.06.15"]
[Round "5"]
[White "Carlsen, Magnus"]
[Black "Aronian, Levon"]
[Result "1/2-1/2"]
[ECO "C36"]
[WhiteElo "2933"]
[BlackElo "2816"]
[Annotator ""]
[PlyCount "85"]
[EventDate "2015.??.??"]
[EventCountry "NOR"]
[TimeControl "180+2"]

1. e4 {[%emt 0:00:00]} e5 {[%emt 0:00:00]} 2. f4 {[%emt 0:00:01]} exf4 {[%emt
0:00:05]} 3. Nf3 {[%emt 0:00:02]} d5 {[%emt 0:00:01]} 4. exd5 {[%emt 0:00:03]}
Nf6 {[%emt 0:00:02]} 5. Bc4 {[%emt 0:00:22]} Nxd5 {[%emt 0:00:11]} 6. O-O {
[%emt 0:00:05]} Be7 {[%emt 0:00:07]} 7. Nc3 {[%emt 0:00:03]} Be6 {[%emt 0:00:
16]} 8. Qe2 {[%emt 0:00:03]} Nc6 {[%emt 0:00:10]} 9. d4 {[%emt 0:00:03]} O-O {
[%emt 0:00:38]} 10. Nxd5 {[%emt 0:00:03]} Bxd5 {[%emt 0:00:02]} 11. Bxd5 {
[%emt 0:00:02]} Qxd5 {[%emt 0:00:01]} 12. Bxf4 {[%emt 0:00:29]} Bd6 {[%emt 0:
00:02]} 13. Qd2 {[%emt 0:00:37]} Rae8 {[%emt 0:00:08]} 14. Bxd6 {[%emt 0:00:02]
} Qxd6 {[%emt 0:00:03]} 15. Rae1 {[%emt 0:00:04]} Re7 {[%emt 0:00:21]} 16. d5 {
[%emt 0:00:13]} Ne5 {[%emt 0:00:07]} 17. Nxe5 {[%emt 0:00:02]} Rxe5 {[%emt 0:
00:01]} 18. Rxe5 {[%emt 0:00:09]} Qxe5 {[%emt 0:00:02]} 19. c4 {[%emt 0:00:05]}
Re8 {[%emt 0:00:01]} 20. Qf2 {[%emt 0:00:05]} f6 {[%emt 0:00:07]} 21. b3 {
[%emt 0:00:15]} b6 {[%emt 0:00:02]} 22. h3 {[%emt 0:00:04]} Kf7 {[%emt 0:00:03]
} 23. Rd1 {[%emt 0:00:02]} h5 {[%emt 0:00:12]} 24. c5 {[%emt 0:00:01]} Rd8 {
[%emt 0:00:14]} 25. d6 {[%emt 0:00:20]} Rd7 {[%emt 0:00:13]} 26. b4 {[%emt 0:
00:25]} bxc5 {[%emt 0:00:02]} 27. bxc5 cxd6 {[%emt 0:00:01]} 28. c6 {[%emt 0:
00:01]} Rc7 {[%emt 0:00:01]} 29. Rc1 {[%emt 0:00:02]} Qd5 {[%emt 0:00:10]} 30.
Qc2 {[%emt 0:00:01]} Qc5+ {[%emt 0:00:28]} 31. Qxc5 {[%emt 0:00:01]} dxc5 {
[%emt 0:00:01]} 32. Rxc5 {[%emt 0:00:00]} g6 {[%emt 0:00:01]} 33. Kf2 {[%emt 0:
00:02]} Ke6 {[%emt 0:00:01]} 34. Ra5 {[%emt 0:00:02]} Kd6 {[%emt 0:00:08]} 35.
Ke3 {[%emt 0:00:07]} h4 {[%emt 0:00:03]} 36. Kf4 {[%emt 0:00:02]} Rxc6 {[%emt
0:00:02]} 37. Rxa7 {[%emt 0:00:01]} Rc4+ {[%emt 0:00:01]} 38. Kf3 {[%emt 0:00:
02]} g5 {[%emt 0:00:03]} 39. Ra6+ {[%emt 0:00:03]} Ke5 {[%emt 0:00:01]} 40.
Ra5+ {[%emt 0:00:01]} Ke6 {[%emt 0:00:00]} 41. Ra6+ {[%emt 0:00:02]} Kf5 {
[%emt 0:00:01]} 42. Ra5+ {[%emt 0:00:01]} Ke6 {[%emt 0:00:02]} 43. Ra6+ {[%emt
0:00:02]} 1/2-1/2

[Event "Norway Chess 2015 Blitz"]
[Site "Stavanger"]
[Date "2015.06.15"]
[Round "5"]
[White "Caruana, Fabiano"]
[Black "Anand, Viswanathan"]
[Result "0-1"]
[ECO "E06"]
[WhiteElo "2679"]
[BlackElo "2767"]
[Annotator ""]
[PlyCount "110"]
[EventDate "2015.??.??"]
[EventCountry "NOR"]
[TimeControl "180+2"]

1. d4 {[%emt 0:00:00]} Nf6 {[%emt 0:00:00]} 2. c4 {[%emt 0:00:02]} e6 {[%emt 0:
00:00]} 3. g3 {[%emt 0:00:02]} d5 {[%emt 0:00:02]} 4. Nf3 {[%emt 0:00:01]} Be7
{[%emt 0:00:02]} 5. Bg2 {[%emt 0:00:01]} O-O {[%emt 0:00:02]} 6. O-O {[%emt 0:
00:03]} dxc4 {[%emt 0:00:01]} 7. Qa4 {[%emt 0:00:01]} a6 {[%emt 0:00:04]} 8.
Qxc4 {[%emt 0:00:02]} b5 {[%emt 0:00:01]} 9. Qc2 {[%emt 0:00:01]} Bb7 {[%emt 0:
00:02]} 10. Bd2 {[%emt 0:00:01]} Bd6 {[%emt 0:00:03]} 11. Nh4 {[%emt 0:00:08]}
Bxg2 {[%emt 0:00:04]} 12. Kxg2 {[%emt 0:00:02]} Nbd7 {[%emt 0:00:03]} 13. e4 {
[%emt 0:00:02]} Be7 {[%emt 0:00:14]} 14. Nc3 {[%emt 0:01:16]} c5 {[%emt 0:00:
09]} 15. dxc5 {[%emt 0:00:16]} Nxc5 {[%emt 0:00:05]} 16. Be3 {[%emt 0:00:10]}
Qd3 {[%emt 0:00:20]} 17. Rac1 {[%emt 0:00:26]} Qxc2 {[%emt 0:00:03]} 18. Rxc2 {
[%emt 0:00:00]} Ncxe4 {[%emt 0:00:02]} 19. Nxe4 {[%emt 0:00:02]} Nxe4 {[%emt 0:
00:01]} 20. Nf3 {[%emt 0:00:11]} Rfc8 {[%emt 0:00:05]} 21. Rfc1 {[%emt 0:00:02]
} Rxc2 {[%emt 0:00:31]} 22. Rxc2 {[%emt 0:00:00]} Nf6 {[%emt 0:00:07]} 23. Bd4
{[%emt 0:00:05]} Nd5 {[%emt 0:00:02]} 24. Ne5 {[%emt 0:00:03]} f6 {[%emt 0:00:
03]} 25. Nc6 {[%emt 0:00:07]} Kf7 {[%emt 0:00:05]} 26. Na5 {[%emt 0:00:10]} Ke8
{[%emt 0:00:06]} 27. f4 {[%emt 0:00:07]} Kd7 {[%emt 0:00:02]} 28. Kf3 {[%emt 0:
00:02]} Rc8 {[%emt 0:00:14]} 29. Rxc8 {[%emt 0:00:02]} Kxc8 {[%emt 0:00:01]}
30. Ke4 {[%emt 0:00:04]} f5+ {[%emt 0:00:11]} 31. Kd3 {[%emt 0:00:03]} g6 {
[%emt 0:00:02]} 32. a3 {[%emt 0:00:03]} Kd7 {[%emt 0:00:07]} 33. Nb3 {[%emt 0:
00:02]} Bd6 {[%emt 0:00:07]} 34. Nd2 {[%emt 0:00:02]} Ne7 {[%emt 0:00:07]} 35.
Nf3 {[%emt 0:00:01]} Nc6 {[%emt 0:00:02]} 36. Bc3 {[%emt 0:00:02]} Be7 {[%emt
0:00:01]} 37. h3 {[%emt 0:00:03]} Kd6 {[%emt 0:00:02]} 38. b3 {[%emt 0:00:07]}
Kd5 {[%emt 0:00:01]} 39. a4 {[%emt 0:00:00]} Bd6 {[%emt 0:00:09]} 40. axb5 {
[%emt 0:00:01]} axb5 {[%emt 0:00:00]} 41. Ng5 {[%emt 0:00:03]} h6 {[%emt 0:00:
04]} 42. Nf7 {[%emt 0:00:02]} Bf8 {[%emt 0:00:01]} 43. Nh8 {[%emt 0:00:02]} g5
{[%emt 0:00:04]} 44. fxg5 {[%emt 0:00:05]} hxg5 {[%emt 0:00:01]} 45. Nf7 {
[%emt 0:00:03]} Be7 {[%emt 0:00:07]} 46. Bd2 {[%emt 0:00:07]} Ne5+ {[%emt 0:00:
02]} 47. Nxe5 {[%emt 0:00:01]} Kxe5 {[%emt 0:00:01]} 48. g4 {[%emt 0:00:01]} f4
{[%emt 0:00:03]} 49. Bc1 {[%emt 0:00:08]} Kd5 {[%emt 0:00:01]} 50. h4 {[%emt 0:
00:02]} gxh4 {[%emt 0:00:01]} 51. Bxf4 {[%emt 0:00:01]} Bd6 {[%emt 0:00:06]}
52. Ke3 {[%emt 0:00:12]} Bxf4+ {[%emt 0:00:08]} 53. Kxf4 {[%emt 0:00:01]} e5+ {
[%emt 0:00:00]} 54. Ke3 {[%emt 0:00:04]} h3 {[%emt 0:00:03]} 55. Kf2 {[%emt 0:
00:01]} e4 {[%emt 0:00:01]} 0-1